Cogmind - Beta 15 @@@ ROGUE MODE // 2025.10.12 @ 17:49:23 Player: microsand Result: Destroyed by G-34 Mercenary with Small Laser Performance ------------- Evolutions (0) 0 Regions Visited (1) 200 Robots Destroyed (27) 135 Value Destroyed (417) 417 Prototype IDs (0) 0 Alien Tech Used (0) 0 Bonus (0) 0 TOTAL SCORE: 752 Bonus ------- None Cogmind --------- Core Integrity 0/250 Matter 285/300 Energy 21/100 System Corruption 0% Temperature Warm (156) Movement Core (700) Ox13 Location -10/Materials Parts ------- > --- POWER (1) -------- (None) > --- PROPULSION (2) --- (None) > --- UTILITY (2) ------ High-capacity Storage Unit > --- WEAPON (2) ------- Medium Laser > --- INVENTORY (20) --- Ion Engine Small Storage Unit Hacking Suite Tractor Beam Mining Laser Peak State ------------ > --- POWER ------------ Ion Engine > --- PROPULSION ------- Light Treads Light Treads > --- UTILITY ---------- Small Storage Unit Seismic Detector > --- WEAPON ----------- Light Assault Rifle Light Assault Rifle > --- INVENTORY -------- Ion Engine Tractor Beam EM Pulse Gun [Rating: 7] Favorites ----------- Power Ion Engine Engine Ion Engine Propulsion Light Treads Treads Light Treads Leg Aluminum Leg Utility High-capacity Storage Unit Device Seismic Detector Storage High-capacity Storage Unit Weapon Light Assault Rifle Energy Gun Medium Laser Ballistic Gun Light Assault Rifle Build | -11 -10 ------- Run | Yrd Mat Slots Evolved . | . . Power . | . . Propulsion . | . . Utility . | . . Weapon . | . . Parts Attached 11 | 8 3 Power 1 | 1 . Engine 1 | 1 . Core . | . . Reactor . | . . Propulsion 3 | 3 . Treads 2 | 2 . Leg 1 | 1 . Wheel . | . . Hover . | . . Flight . | . . Utility 3 | 2 1 Device 1 | 1 . Storage 2 | 1 1 Processor . | . . Hackware . | . . Protection . | . . Artifact . | . . Weapon 4 | 2 2 Energy Gun 2 | . 2 Energy Cannon . | . . Ballistic Gun 2 | 2 . Ballistic Cannon . | . . Launcher . | . . Special Weapon . | . . Impact Weapon . | . . Slashing Weapon . | . . Piercing Weapon . | . . Special Melee Weapon . | . . Unidentified Prototypes . | . . Parts Lost 7 | . 7 Power 1 | . 1 Propulsion 2 | . 2 Utility 1 | . 1 Weapon 3 | . 3 Highest Loss Streak 3 | . 3 To Critical Strikes . | . . Average Backups 5 | 2 5 Power . | . 1 Propulsion . | . . Utility 2 | . 2 Weapon 1 | 1 2 Tool/Special . | . . Unused Backups 4 | . 4 Power 1 | . 1 Propulsion . | . . Utility 2 | . 2 Weapon 1 | . 1 Tool/Special . | . . Average Slot Usage (%) 70 | . 70 Engine 11 | . 11 Treads 4 | . 4 Device 11 | . 11 Storage 14 | . 14 Ballistic Gun 27 | . 27 Peak Build Rating 7 | 7 7 Average Rating 5 | 6 4 On Entrance 3 | . 7 Naked Turns . | . . Heaviest Build 48 | 13 48 Greatest Support 40 | 40 40 Greatest Overweight (x) 15 | . 15 Average Overweight (x) 7 | . 9 Largest Inventory Capacity 20 | 8 20 Average Capacity 18 | 7 19 Most Carried 7 | 4 7 Average Carried 5 | 2 5 Final Capacity 20 | 8 20 Final Carried 5 | 4 5 Class Distribution -------------------- 100% | Mutant Dominant Class ---------------- Mutant | -10/Materials Resources | -11 -10 ----------- Run | Yrd Mat Matter Collected 483 | 296 187 Remotely . | . . Salvage Created 800 | 145 655 Parts 50 | 17 33 Haulers Intercepted 1 | . 1 Recyclers Shooed 1 | . 1 Parts Field Recycled . | . . Retrieved Matter . | . . Parts Self-Destructed . | . . Prevented . | . . Kills | -11 -10 ------- Run | Yrd Mat Combat Hostiles Destroyed 15 | . 15 Guns 15 | . 15 Classes Destroyed 7 | 2 5 Worker 2 | . 2 Tunneler 5 | 5 . Hauler 1 | . 1 Recycler 3 | 1 2 Operator 1 | . 1 Swarmer 8 | . 8 Grunt 7 | . 7 Best Kill Streak 4 | 1 4 Combat Bots Only 4 | . 4 Max Kills in Single Turn 1 | 1 1 Gunslinging . | . . Exploded . | . . Melee . | . . Uniques/NPCs Destroyed . | . . Combat | -11 -10 -------- Run | Yrd Mat Hostile Shots Fired 120 | . 120 Missed 21 | . 21 Hits 99 | . 99 Projectile 99 | . 99 Critical Strikes 1 | . 1 Damage Taken 1002 | . 1002 Core 257 | . 257 Absorbed by Shields . | . . Core Remaining (%) 100 | 100 . Volleys Fired 125 | 31 94 Largest 2 | 2 2 Hottest 90 | 40 90 Shots Fired 233 | 55 178 Gun 233 | 55 178 Cannon . | . . Launcher . | . . Special . | . . Kinetic 220 | 55 165 Thermal 9 | . 9 Explosive . | . . Electromagnetic 4 | . 4 Robot Hit Streak 10 | 10 10 Robot Miss Streak 4 | 3 4 Penetration Max . | . . Secondary Targets 3 | . 3 Max Gunslinging Chain 1 | . 1 Shots Hit Robots 148 | 36 112 Core Hits 57 | 13 44 Critical Kills . | . . Critical Parts Destroyed 2 | 1 1 Critical Strikes 2 | 1 1 Destroy 2 | 1 1 Melee Attacks . | . . Impact . | . . Slashing . | . . Piercing . | . . Sneak Attacks . | . . Combat Hostiles . | . . Follow-up Attacks . | . . Damage Inflicted 1229 | 308 921 Guns 1229 | 308 921 Cannons . | . . Explosions . | . . Melee . | . . Ramming . | . . Kinetic 1143 | 308 835 Thermal 49 | . 49 Explosive . | . . Electromagnetic 37 | . 37 Impact . | . . Slashing . | . . Piercing . | . . Highest Corruption . | . . Average Corruption . | . . Corruption Purged . | . . Corruption Blocked . | . . Overload Shots . | . . Overflow Damage . | . . Projectiles . | . . Explosions . | . . Melee . | . . Knockbacks . | . . Impact . | . . Kinetic . | . . Secondary . | . . Self-Inflicted Damage . | . . Shots . | . . Rammed . | . . Targets Rammed . | . . Kicked . | . . Crushed . | . . Highest Temperature 150 | . 150 Average Temperature 51 | . 51 Received Heat Transfer 324 | . 324 Siege Activations . | . . Martial Activations . | . . Shielding Activations . | . . Robots Disrupted . | . . Combat Hostiles . | . . Robots Corrupted . | . . Combat Hostiles . | . . Parts Fried . | . . Impact Corruptions . | . . Robots Melted . | . . Combat Hostiles . | . . Parts Melted . | . . Heat Transferred 148 | . 148 Parts Sabotaged . | . . Parts Stolen . | . . Parts Stripped . | . . Power Chain Reactions . | . . Alert | -11 -10 ------- Run | Yrd Mat Maximum Alert Level . | . . Low Security (%) 100 | 100 100 Level 1 . | . . Level 2 . | . . Level 3 . | . . Level 4 . | . . Level 5 . | . . High Security . | . . Max Security . | . . Peak Influence 120 | 5 120 Initial . | . . Average 28 | . 31 Influence Increases 788 | 30 758 Destroy 0b10 Robot/C 300 | . 300 Destroy 0b10 Robot/NC 60 | 30 30 Destroy Leader 72 | . 72 Successful Hack 26 | . 26 Lose Combat Pursuer 330 | . 330 Influence Decreases 734 | 30 704 Time Decay 664 | 30 634 Lost Part 70 | . 70 Squads Dispatched 2 | . 2 Investigation 1 | . 1 Extermination . | . . Reinforcement 1 | . 1 Assault . | . . Garrison . | . . Intercept . | . . Searches Triggered . | . . Construction Impeded . | . . Haulers Reinforced . | . . Active Scanning Responses . | . . Cargo Convoy Interrupts . | . . Stealth | -11 -10 --------- Run | Yrd Mat Distress Signals 2 | . 2 Communications Jammed . | . . Distress Signals . | . . Times Spotted 45 | . 45 Peak Tracking Total 4 | . 4 Tactical Retreats 18 | . 18 Traps | -11 -10 ------- Run | Yrd Mat Traps Triggered . | . . Indirectly . | . . Trap Hack Attempts . | . . Triggered . | . . Disarmed . | . . Reprogrammed . | . . Reused . | . . Traps Extracted . | . . Installed . | . . Triggered . | . . Machines | -11 -10 ---------- Run | Yrd Mat Machines Disabled . | . . Max in Single Turn . | . . Machines Repaired . | . . Machines Dismantled . | . . Machines Sabotaged . | . . Overloaded Fab Kills . | . . Hacking | -11 -10 --------- Run | Yrd Mat Machines Accessed 4 | . 4 Terminals 4 | . 4 Fabricators . | . . Repair Stations . | . . Recycling Units . | . . Scanalyzers . | . . Garrison Access . | . . Total Hacks 10 | . 10 Successful 3 | . 3 Failed 7 | . 7 Catastrophic 3 | . 3 Database Lockouts . | . . Manual 12 | . 12 Terminals 10 | . 10 Fabricators . | . . Repair Stations . | . . Recycling Units . | . . Scanalyzers . | . . Garrison Access . | . . Terminal Hacks 1 | . 1 Part Schematic 1 | . 1 Fabricator Hacks . | . . Repair Station Hacks . | . . Recycling Unit Hacks . | . . Scanalyzer . | . . Garrison Access Hacks . | . . Unauthorized Hacks 2 | . 2 Terminals 2 | . 2 Botnet 1 | . 1 Operators 1 | . 1 Fabricators . | . . Repair Stations . | . . Recycling Units . | . . Scanalyzers . | . . Garrison Access . | . . Data Cores Recovered . | . . Used . | . . Hacking Detections 4 | . 4 Full Trace Events 3 | . 3 Feedback Events . | . . Feedback Blocked . | . . Robot Schematics Acquired . | . . Robots Built . | . . Authchips . | . . Time . | . . Total Robot Build Rating . | . . Part Schematics Acquired 1 | . 1 Parts Built . | . . Authchips . | . . Time . | . . Total Part Build Rating . | . . Parts Repaired . | . . Time . | . . Parts Recycled . | . . Recycled Matter . | . . Retrieved Matter . | . . Retrieved Components . | . . Parts Scanalyzed . | . . Part Schematics Acquired . | . . Parts Damaged . | . . Bothacking | -11 -10 ------------ Run | Yrd Mat Used RIF Installer . | . . Robots Hacked . | . . Non-combat . | . . Combat . | . . Robot Hacks Applied . | . . Relay Couplers Released . | . . Fabnet Peak Effective % . | . . Robots Rewired . | . . Allies Hacked . | . . Hacks Repelled . | . . Allies | -11 -10 -------- Run | Yrd Mat Total Allies . | . . Largest Group . | . . Highest-Rated Group . | . . Highest-Rated Ally . | . . Total Orders . | . . Ally Attacks . | . . Total Damage . | . . Kills . | . . Allies Corrupted . | . . Allies Melted . | . . Intel | -11 -10 ------- Run | Yrd Mat Active Infowar (turns) 3271 | 289 2982 Seismic 3271 | 289 2982 Robot Analysis Total . | . . Derelict Logs Recovered . | . . Drone Launches . | . . Drone Recoveries . | . . Exploration | -11 -10 ------------- Run | Yrd Mat Turns Passed 3983 | 401 3582 Spaces Moved 746 | 201 545 Core 373 | 15 358 Treads 373 | 186 187 Legs . | . . Wheels . | . . Hover . | . . Flight . | . . Fastest Speed 50 | 50 160 Average Speed 472 | 151 590 Slowest Speed 800 | 160 800 Overloaded Moves . | . . Propulsion Burnouts . | . . Robots Hopped . | . . Potential Cave-ins . | . . Cave-ins Triggered . | . . Exploration Rate (%) 33 | 9 58 Regions Visited 1 Branch Regions . Pre-discovered Areas . | . . Known Exits Taken . | . . Unknown Exits Taken 1 | 1 . Scrap Searched . | . . Spaces Dug . | . . Terrain Destroyed . | . . Melee . | . . Projectile . | . . AOE . | . . Terrain Rammed . | . . Walls Destroyed . | . . Machines Disabled . | . . Actions | -11 -10 --------- Run | Yrd Mat Total 1016 | 254 762 Wait 119 | 2 117 Move 745 | 200 545 Hop . | . . Pick Up 15 | 12 3 Fast Attach . | . . Attach 10 | 8 2 Detach . | . . Swap 1 | . 1 Drop 1 | 1 . Fire 125 | 31 94 Melee . | . . Ram . | . . Kick . | . . Crush . | . . Escape Stasis . | . . Rewire . | . . Trap . | . . Miscellaneous . | . . Route ------- -11/Scrapyard -10/Materials (discovered 2 exits: [*Mat] / [*Min]) History --------- Turn | Location | Event 3 | -11/Scrapyard | Discovered new exit (range 16) 402 | -11/Scrapyard | Entered Materials 403 | -10/Materials | Build established: Mutant 507 | -10/Materials | Discovered new exit (range 8) 975 | -10/Materials | Core integrity fell below 50% 999 | -10/Materials | Discovered new exit (range 8) 3965 | -10/Materials | Core integrity fell below 20% 3984 | -10/Materials | Destroyed by G-34 Mercenary with Small Laser Last Messages --------------- 03637_ K-01 Serf cleans the Terminal. 03641_ K-01 Serf cleans the Recycling Unit. 03645_ K-01 Serf cleans the Terminal. 03647_ R-06 Scavenger destroyed. 03648_ K-01 Serf cleans the Terminal. 03649_ K-01 Serf collects debris. 03651_ K-01 Serf cleans the Terminal. 03653_ K-01 Serf collects debris. 03726_ R-06 Scavenger collects Lgt. Ion Engine. 03730_ R-06 Scavenger collects Com. Wheel. 03866_ Acquired 28 matter. 03907_ K-01 Serf cleans the Terminal. 03908_ W-16 Scout sends out distress signal. 03910_ K-01 Serf cleans the Terminal. 03922_ K-01 Serf destroyed. 03941_ Lgt. Assault Rifle destroyed. 03954_ Critical hit (Burn: +37). 03960_ Lgt. Assault Rifle destroyed. 03972_ G-47 Trooper destroyed. 03974_ EM Pulse Gun destroyed. Map ----- +----------------------------------------------------+ | | | | | | | | | | | | | | | ????????????#############???????????????????????? | | ????????????# """T""" #???????????????????????? | | ????????????# #???????????????????????? | | ????????????# #???????????????????????? | | ????????????# !![ """ #?????? ????????????????? | | ????????????# !![ """ = #??"""" ????????????????? | | ????????????# ![ """ #??""" ?????????????????? | | ????????????# % #?? ?????????????????? | | ????????????#######+##+##?? ??????????????????? | | ??????###+####### # #??? ??????????????????? | | ??????# # #####+###???????#####????? | | ??????# # #???????# #????? | | ??????########### # #???????# #????? | | ????????????????## ## #???????# #????? | | ?????????????????# ## ######### ###### | | ??????############ %## =%! ## = | | ??????# !## ## ### %% | | ??????+ ## ## !! ""# | | ??????# # # @! T"# ############# | | ??????# """ """ + # ""# #?? / | | ??????# """ """ # # ### #??? | | ??????? """ """ # # "" ""# #???""""" | | ???????? ## "T Y"# #?? """"" | | ???????? ## "" ""# #?? """""=%= | | ????# ##+######### ! ### ##?#######+## | | ????# %[## ####### | | ????# ^ #### g## | | ????#####+### %###+###+##?# ## | | ????????????# # #?# ## | | ????????????# # """ ### ## ####### | | ????????????# # "T" ## ##############% # | | ????????????# # ## ^^ | | ?????? ????# # = ## ^ | | ??????? ??## ########### | | ????####+### #???????# ############### | | ????# "" #######?#######?????????????# | | ????# < T # #????????????????????# | | ????# % # #????????????????????# | | ????####+### % # #????????????????????# | | ?????? ??##% ## """ #????????????????????# | | ????? ????# ## """ ?????????????????????# | | ????# ?????# ## ""???????#######?????????# | | ????# ??????# ###+########## #?????????# | +----------------------------------------------------+ Best States ------------- Heat Dissipation 25 Energy Generation 10 Energy Capacity 250 Matter Stores 300 Matter Capacity 300 Sight Range 16 Terrain Scan Density 10 Evasion (%) 40 Recoil Reduction 2 Item Schematics ----------------- Lgt. Armor Plating | -10/Materials | Hacked Robot Schematics ------------------ None Fabricated ------------ Nothing Repaired ---------- Nothing Alien Tech Used ----------------- None Achievements -------------- None Challenges ------------ None Game ------ Seed BraceDisassembledThruster Manual? 0 Play Time 00:15:29 Cumulative 20.9 hours Start 2025.10.12 @ 15:16:37 End 2025.10.12 @ 17:49:23 Sessions 2 Manual Loads 0 Difficulty Rogue Special Mode None Game No. 61 Rogue 61 Adventurer 0 Explorer 0 Win Type - Total 0 Types 0/0/0/0/0/0/0/0/0/0 Lore% 33 Gallery% 28 Achievement% 29 Wizard Run 0 Options --------- Layout 1 ASCII 0 Keyboard 0 Movement Numpad Keybinds 0 Fullscreen 1 Font 24/Smallcaps Map View 50x35 Zoom Use 0% Tactical HUD 1 Map Filters NONE Filters NONE Steam 1 RUN: a777fc40-4655-4981-ad76-4895c0438b4d